fUSD/lending_fUSD_20251103
["ID","MTS","AMOUNT","RATE_DAILY","PERIOD"]
[392912372,1762129840642,-262.85252029,0.00014991,2]
[392912379,1762129840859,-1.6e-07,0.00014991,2]
[392912380,1762129840870,-391.74,0.00014991,2]
[392912381,1762129840880,-11206.0,0.00014991,2]
[392912382,1762129840894,-550.55,0.00014991,2]
[392912387,1762129843294,-620.87859331,0.00014991,2]
[392912393,1762129843456,-3480.49725428,0.00014991,2]
[392912410,1762129846332,-1446.45555912,0.000149,2]
[392912412,1762129846342,-757.53444088,0.00014991,2]
[392912424,1762129846446,-847.5101032,0.00014991,2]
[392912427,1762129846558,-5610.2605974,0.00014991,2]
[392912428,1762129846567,-150.0,0.00014991,2]
[392912429,1762129846576,-47.99172195,0.00014991,2]
[392912430,1762129846616,-102.00827805,0.00014991,2]
[392912431,1762129846625,-500.0,0.00014991,2]
[392912432,1762129846634,-150.0,0.00014991,2]
[392912433,1762129846642,-150.0,0.00014991,2]
[392912434,1762129846651,-150.0,0.00014991,2]
[392912435,1762129846660,-150.0,0.00014991,2]
[392912436,1762129846670,-620.0,0.00014991,2]
[392912437,1762129846679,-195.06381309,0.00014991,2]
[392912438,1762129846689,-151.0,0.00014991,2]
[392912439,1762129846698,-160.0,0.00014991,2]
[392912440,1762129846706,-34.67607491,0.00014991,2]
[392912441,1762129882648,150.0,0.00014189,2]
[392912448,1762129969235,150.0,0.00014139,2]
[392912449,1762129972372,213.77,0.00014139,2]
[392912451,1762130087790,500.0,0.00014071,2]
[392912467,1762130122934,954.54,0.00014,2]
[392912468,1762130124789,415.37114078,0.00014,2]
[392912469,1762130124810,539.16885922,0.00014,2]
[392912470,1762130127081,954.54,0.00014,2]
[392912471,1762130128775,954.54,0.00014,2]
[392912472,1762130130734,954.54,0.00014,2]
[392912473,1762130133856,357.85,0.00013699,2]
[392912474,1762130225833,4445.08,0.0001403,2]
[392912475,1762130235646,500.0,0.00013,2]
[392912476,1762130245460,500.0,0.00013,2]
[392912477,1762130246980,500.0,0.00013,2]
[392912478,1762130248435,500.0,0.00013,2]
[392912479,1762130248924,500.0,0.00012011,2]
[392912480,1762130282613,200.0,0.0001389,2]
[392912482,1762130322575,2000.0,0.00013877,2]
[392912483,1762130343156,515.15875602,0.0001399,2]
[392912484,1762130374836,339.77124398,0.00013883,2]
[392912485,1762130374858,815.86875602,0.00013883,2]
[392912486,1762130389692,2446.528289,0.00014492,2]
[392912487,1762130408351,200.0,0.00013876,2]
[392912488,1762130408540,238.63,0.00014,2]
[392912489,1762130410455,238.63,0.00014,2]
[392912490,1762130412325,238.63,0.00014,2]
[392912491,1762130415154,238.63,0.00014,2]
[392912492,1762130417225,238.63,0.00014,2]
[392912493,1762130433837,-468.17099642,0.00014552,2]
[392912494,1762130435309,-205.82117265,0.00014552,2]
[392912495,1762130436900,-205.61251947,0.00014552,2]
[392912496,1762130461930,999.0,0.00013876,3]
[392912498,1762130467430,879.604689,0.00014479,2]
[392912504,1762130637756,156.0,0.00018,120]
[392912505,1762130673791,166.66,0.00013699,2]
[392912506,1762130673985,166.66,0.00013871,2]
[392912507,1762130674196,166.66,0.00014043,2]
[392912508,1762130674490,166.66,0.00014214,2]
[392912509,1762130674647,166.66,0.00014386,2]
[392912511,1762130695024,399.03349339,0.00014374,2]
[392912513,1762130754974,156.85,0.00013861,2]
[392912515,1762130767088,164.46490794,0.00014462,2]
[392912516,1762130793487,285.15297987,0.00014374,2]
[392912580,1762130891634,166.66,0.00014185,2]
[392912587,1762130928789,-166.66,0.00014558,2]
[392912588,1762130928810,-28.38950475,0.0001456,2]
[392912589,1762130931038,-157.54725634,0.0001456,2]
[392912598,1762130959144,1404.26,0.00013877,2]
[392912608,1762131031379,-64.06323891,0.0001456,2]
[392912610,1762131031390,-578.20924308,0.00014566,2]
[392912611,1762131031399,-206.51280977,0.00014586,2]
[392912612,1762131031410,-768.56466199,0.00014629,2]
[392912613,1762131031487,-124.65293192,0.00014629,2]
[392912614,1762131031496,-156.85,0.00014631,2]
[392912615,1762131031507,-206.51280976,0.00014632,2]
[392912616,1762131031517,-244.89431089,0.00014651,2]
[392912617,1762131031527,-166.66,0.00014653,2]
[392912618,1762131031537,-206.51280976,0.00014678,2]
[392912619,1762131031548,-240.6269,0.00014679,2]
[392912620,1762131031558,-1200.0,0.00014768,2]
[392912621,1762131031569,-258.0,0.00014768,2]
[392912622,1762131031579,-300.0,0.00014768,2]
[392912623,1762131031590,-300.0,0.00014768,2]
[392912624,1762131031599,-1179.24797308,0.00014768,2]
[392912625,1762131031611,-20.75202692,0.00014768,2]
[392912626,1762131031621,-153.68065959,0.00014769,2]
[392912627,1762131031631,-313.13464191,0.00014769,2]
[392912628,1762131031641,-4266.43358674,0.00014769,2]
[392912629,1762131031653,-3993.69713565,0.00014769,2]
[392912630,1762131031664,-239.84119403,0.00014769,2]
[392912631,1762131031673,-150.0,0.00014776,2]
[392912632,1762131031684,-9999.99,0.00014777,2]
[392912633,1762131031694,-299.99,0.00014777,2]
[392912634,1762131031703,-150.99,0.00014777,2]
[392912635,1762131031717,-3583.14,0.00014777,2]
[392912636,1762131031729,-202.78443337,0.00014777,2]
[392912637,1762131031738,-500.0,0.00014777,2]
[392912638,1762131031748,-500.0,0.00014777,2]
[392912639,1762131031758,-500.0,0.00014777,2]
[392912641,1762131031767,-500.0,0.00014777,2]
[392912643,1762131031776,-500.0,0.00014777,2]
[392912644,1762131031787,-500.0,0.00014777,2]
[392912645,1762131031797,-500.0,0.00014777,2]
[392912646,1762131031807,-500.0,0.00014777,2]
[392912648,1762131031816,-500.0,0.00014777,2]
[392912650,1762131031824,-500.0,0.00014777,2]
[392912652,1762131031834,-500.0,0.00014777,2]
[392912654,1762131031843,-500.0,0.00014777,2]
[392912656,1762131031852,-500.0,0.00014777,2]
[392912658,1762131031861,-500.0,0.00014777,2]
[392912661,1762131031870,-500.0,0.00014777,2]
[392912664,1762131031879,-500.0,0.00014777,2]
[392912667,1762131031887,-500.0,0.00014777,2]
[392912669,1762131031897,-500.0,0.00014777,2]
[392912671,1762131031906,-500.0,0.00014777,2]
[392912673,1762131031915,-208.24402367,0.00014777,2]
[392912675,1762131031925,-500.0,0.00014777,2]
[392912676,1762131031934,-500.0,0.00014777,2]
[392912677,1762131031943,-14271.83,0.00014778,2]
[392912678,1762131031953,-1718.33,0.00014778,2]
[392912679,1762131031962,-6025.21,0.00014778,2]
[392912680,1762131031972,-384.82,0.00014778,2]
[392912681,1762131031982,-9034.83,0.00014778,2]
[392912682,1762131031991,-1659.03,0.00014778,2]
[392912683,1762131032000,-8297.1,0.00014778,2]
[392912684,1762131032009,-9999.99,0.00014778,2]
[392912685,1762131032018,-999.99,0.00014778,2]
[392912686,1762131032027,-9999.99,0.00014778,2]
[392912687,1762131032036,-9999.99,0.00014778,2]
[392912688,1762131032045,-1185.67,0.00014778,2]
[392912689,1762131032054,-499.99,0.00014778,2]
[392912690,1762131032063,-150.99,0.00014778,2]
[392912691,1762131032072,-1993.92783824,0.00014778,2]
[392912692,1762131032081,-1993.92783825,0.0001478,2]
[392912693,1762131032091,-1449.83706798,0.0001478,2]
[392912694,1762131032100,-151.0,0.00014791,2]
[392912695,1762131032109,-151.0,0.00014791,2]
[392912696,1762131032119,-322.6107,0.00014791,2]
[392912697,1762131032128,-151.0,0.00014791,2]
[392912698,1762131032137,-151.0,0.00014791,2]
[392912699,1762131032146,-151.0,0.00014791,2]
[392912700,1762131032155,-151.0,0.00014791,2]
[392912701,1762131032164,-187.78006525,0.00014791,2]
[392912702,1762131032173,-151.0,0.00014791,2]
[392912703,1762131032183,-151.0,0.00014791,2]
[392912704,1762131032193,-250.0,0.00014791,2]
[392912705,1762131032202,-151.0,0.00014791,2]
[392912706,1762131032211,-151.0,0.00014791,2]
[392912707,1762131032220,-250.0,0.00014791,2]
[392912708,1762131032229,-151.0,0.00014791,2]
[392912709,1762131032238,-151.0,0.00014791,2]
[392912710,1762131032247,-250.0,0.00014791,2]
[392912711,1762131032256,-151.0,0.00014791,2]
[392912712,1762131032265,-151.0,0.00014791,2]
[392912713,1762131032274,-250.0,0.00014791,2]
[392912714,1762131032283,-151.0,0.00014791,2]
[392912715,1762131032293,-250.0,0.00014791,2]
[392912716,1762131032302,-151.0,0.00014791,2]
[392912717,1762131032311,-151.0,0.00014791,2]
[392912718,1762131032320,-623.58710448,0.00014791,2]
[392912719,1762131032329,-151.0,0.00014791,2]
[392912720,1762131032339,-250.0,0.00014791,2]
[392912721,1762131032347,-151.0,0.00014791,2]
[392912722,1762131032356,-151.0,0.00014791,2]
[392912723,1762131032366,-151.0,0.00014791,2]
[392912724,1762131032375,-151.0,0.00014791,2]
[392912725,1762131032384,-250.0,0.00014791,2]
[392912726,1762131032393,-151.0,0.00014791,2]
[392912727,1762131032403,-151.0,0.00014791,2]
[392912728,1762131032412,-151.0,0.00014791,2]
[392912729,1762131032421,-151.0,0.00014791,2]
[392912730,1762131032431,-250.0,0.00014791,2]
[392912731,1762131032440,-151.0,0.00014791,2]
[392912732,1762131032450,-151.0,0.00014791,2]
[392912733,1762131032459,-151.0,0.00014791,2]
[392912734,1762131032468,-151.0,0.00014791,2]
[392912735,1762131032479,-250.0,0.00014791,2]
[392912736,1762131032490,-151.0,0.00014791,2]
[392912737,1762131032499,-151.0,0.00014791,2]
[392912738,1762131032509,-151.0,0.00014791,2]
[392912739,1762131032519,-250.0,0.00014791,2]
[392912740,1762131032531,-151.0,0.00014791,2]
[392912741,1762131032542,-250.0,0.00014791,2]
[392912742,1762131032552,-500.0,0.00014791,2]
[392912743,1762131032562,-151.0,0.00014791,2]
[392912744,1762131032571,-151.0,0.00014791,2]
[392912745,1762131032580,-151.0,0.00014791,2]
[392912746,1762131032589,-250.0,0.00014791,2]
[392912747,1762131032598,-250.0,0.00014791,2]
[392912748,1762131032609,-151.0,0.00014791,2]
[392912749,1762131032619,-500.0,0.00014791,2]
[392912750,1762131032628,-151.0,0.00014791,2]
[392912751,1762131032638,-151.0,0.00014791,2]
[392912752,1762131032648,-151.0,0.00014791,2]
[392912753,1762131032658,-250.0,0.00014791,2]
[392912754,1762131032667,-500.0,0.00014791,2]
[392912755,1762131032677,-151.0,0.00014791,2]
[392912756,1762131032687,-151.0,0.00014791,2]
[392912757,1762131032698,-151.0,0.00014791,2]
[392912758,1762131032707,-200.53903429,0.00014791,2]
[392912759,1762131032718,-500.0,0.00014791,2]
[392912760,1762131032729,-151.0,0.00014791,2]
[392912761,1762131032739,-151.0,0.00014791,2]
[392912762,1762131032753,-500.0,0.00014791,2]
[392912763,1762131032762,-151.0,0.00014791,2]
[392912764,1762131032771,-500.0,0.00014791,2]
[392912765,1762131032780,-151.0,0.00014791,2]
[392912766,1762131032789,-151.0,0.00014791,2]
[392912767,1762131032798,-500.0,0.00014791,2]
[392912768,1762131032807,-151.0,0.00014791,2]
[392912769,1762131032816,-500.0,0.00014791,2]
[392912770,1762131032826,-151.0,0.00014791,2]
[392912771,1762131032835,-500.0,0.00014791,2]
[392912772,1762131032844,-151.0,0.00014791,2]
[392912773,1762131032853,-620.0,0.00014791,2]
[392912774,1762131032863,-200.0,0.00014791,2]
[392912775,1762131032872,-500.0,0.00014791,2]
[392912776,1762131032880,-151.0,0.00014791,2]
[392912777,1762131032890,-500.0,0.00014791,2]
[392912778,1762131032898,-500.0,0.00014791,2]
[392912779,1762131032908,-151.0,0.00014791,2]
[392912780,1762131032917,-500.0,0.00014791,2]
[392912781,1762131032926,-500.0,0.00014791,2]
[392912782,1762131032935,-151.0,0.00014791,2]
[392912783,1762131032944,-500.0,0.00014791,2]
[392912784,1762131032953,-500.0,0.00014791,2]
[392912785,1762131032962,-500.0,0.00014791,2]
[392912786,1762131032971,-151.0,0.00014791,2]
[392912787,1762131032980,-500.0,0.00014791,2]
[392912788,1762131032989,-500.0,0.00014791,2]
[392912789,1762131032998,-500.0,0.00014791,2]
[392912790,1762131033007,-151.0,0.00014791,2]
[392912791,1762131033016,-496.47127164,0.00014791,2]
[392912792,1762131033025,-500.0,0.00014791,2]
[392912793,1762131033034,-500.0,0.00014791,2]
[392912794,1762131033044,-500.0,0.00014791,2]
[392912795,1762131033053,-500.0,0.00014791,2]
[392912796,1762131033062,-500.0,0.00014791,2]
[392912797,1762131033071,-500.0,0.00014791,2]
[392912798,1762131033080,-500.0,0.00014791,2]
[392912799,1762131033090,-500.0,0.00014791,2]
[392912800,1762131033099,-500.0,0.00014791,2]
[392912801,1762131033108,-500.0,0.00014791,2]
[392912802,1762131033118,-500.0,0.00014791,2]
[392912803,1762131033127,-281.55946028,0.00014791,2]
[392912804,1762131033137,-500.0,0.00014791,2]
[392912805,1762131033146,-500.0,0.00014791,2]
[392912806,1762131033156,-250.0,0.00014791,2]
[392912807,1762131033165,-500.0,0.00014791,2]
[392912808,1762131033174,-500.0,0.00014791,2]
[392912809,1762131033184,-250.0,0.00014791,2]
[392912810,1762131033194,-151.0,0.00014791,2]
[392912811,1762131033203,-500.0,0.00014791,2]
[392912812,1762131033212,-500.0,0.00014791,2]
[392912813,1762131033225,-250.0,0.00014791,2]
[392912814,1762131033238,-500.0,0.00014791,2]
[392912815,1762131033251,-500.0,0.00014791,2]
[392912816,1762131033262,-250.0,0.00014791,2]
[392912817,1762131033275,-200.0,0.00014791,2]
[392912818,1762131033285,-500.0,0.00014791,2]
[392912819,1762131033296,-250.0,0.00014791,2]
[392912820,1762131033306,-500.0,0.00014791,2]
[392912821,1762131033317,-250.0,0.00014791,2]
[392912822,1762131033327,-500.0,0.00014791,2]
[392912823,1762131033339,-250.0,0.00014791,2]
[392912824,1762131033350,-500.0,0.00014791,2]
[392912825,1762131033361,-250.0,0.00014791,2]
[392912826,1762131033372,-500.0,0.00014791,2]
[392912827,1762131033384,-250.0,0.00014791,2]
[392912828,1762131033396,-500.0,0.00014791,2]
[392912829,1762131033408,-250.0,0.00014791,2]
[392912830,1762131033420,-151.0,0.00014791,2]
[392912831,1762131033431,-250.0,0.00014791,2]
[392912832,1762131033442,-225.66820963,0.00014791,2]
[392912833,1762131033453,-250.0,0.00014791,2]
[392912834,1762131033463,-250.0,0.00014791,2]
[392912835,1762131033473,-250.0,0.00014791,2]
[392912836,1762131033488,-250.0,0.00014791,2]
[392912837,1762131033500,-250.0,0.00014791,2]
[392912838,1762131033511,-250.0,0.00014791,2]
[392912839,1762131033522,-500.0,0.00014791,2]
[392912840,1762131033533,-500.0,0.00014791,2]
[392912841,1762131033544,-250.0,0.00014791,2]
[392912842,1762131033557,-250.0,0.00014791,2]
[392912843,1762131033568,-500.0,0.00014791,2]
[392912844,1762131033580,-195.42236844,0.00014791,2]
[392912845,1762131033592,-500.0,0.00014791,2]
[392912846,1762131033603,-250.0,0.00014791,2]
[392912847,1762131033615,-500.0,0.00014791,2]
[392912848,1762131033626,-250.0,0.00014791,2]
[392912849,1762131033637,-500.0,0.00014791,2]
[392912850,1762131033648,-250.0,0.00014791,2]
[392912851,1762131033659,-500.0,0.00014791,2]
[392912852,1762131033670,-250.0,0.00014791,2]
[392912853,1762131033683,-500.0,0.00014791,2]
[392912854,1762131033696,-250.0,0.00014791,2]
[392912855,1762131033707,-500.0,0.00014791,2]
[392912856,1762131033719,-250.0,0.00014791,2]
[392912857,1762131033730,-500.0,0.00014791,2]
[392912858,1762131033742,-250.0,0.00014791,2]
[392912859,1762131033754,-500.0,0.00014791,2]
[392912860,1762131033765,-500.0,0.00014791,2]
[392912861,1762131033776,-500.0,0.00014791,2]
[392912862,1762131033788,-500.0,0.00014791,2]
[392912863,1762131033799,-500.0,0.00014791,2]
[392912864,1762131033811,-200.0,0.00014791,2]
[392912865,1762131033822,-1449.83706794,0.00014793,2]
[392912866,1762131033836,-279.5781,0.00014799,2]
[392912867,1762131033847,-1449.83706794,0.00014807,2]
[392912868,1762131033858,-1449.83706794,0.0001482,2]
[392912869,1762131033869,-8565.75555911,0.00014824,2]
[392912870,1762131033879,-1449.83706794,0.00014833,2]
[392912871,1762131033891,-168.12563,0.0001484,2]
[392912872,1762131033901,-1449.83706794,0.00014847,2]
[392912873,1762131033912,-1449.83706794,0.0001486,2]
[392912874,1762131033921,-3792.04,0.0001487,2]
[392912875,1762131033933,-1449.83706794,0.00014873,2]
[392912876,1762131033943,-500.0,0.00014878,2]
[392912877,1762131033954,-201.15336307,0.00014878,2]
[392912878,1762131033966,-281.998806,0.00014878,2]
[392912879,1762131033979,-466.79374588,0.00014878,2]
[392912880,1762131033993,-150.0,0.00014878,2]
[392912881,1762131034003,-523.84,0.00014879,2]
[392912882,1762131034014,-8882.6885148,0.00014879,2]
[392912883,1762131034025,-60000.06,0.0001488,2]
[392912884,1762131034035,-200.0,0.0001488,2]
[392912885,1762131034047,-325.5731874,0.00014886,2]
[392912886,1762131034058,-338.51780566,0.00014886,2]
[392912887,1762131034070,-2311.10179129,0.00014886,2]
[392912888,1762131034081,-1449.83706794,0.00014887,2]
[392912889,1762131034093,-2311.10179128,0.00014888,2]
[392912890,1762131034105,-2311.10179128,0.00014889,2]
[392912891,1762131034116,-2311.10179128,0.00014891,2]
[392912892,1762131034126,-1449.83706794,0.000149,2]
[392912893,1762131034139,-187.37578908,0.000149,2]
[392912894,1762131034149,-222.43502455,0.000149,2]
[392912895,1762131034159,-160.9496182,0.000149,2]
[392912896,1762131034170,-447.95312414,0.000149,2]
[392912897,1762131034181,-4955.99045011,0.00014934,2]
[392912898,1762131034524,-4255.35753974,0.00014934,2]
[392912899,1762131034534,-152.544594,0.00014946,2]
[392912900,1762131034544,-151.0,0.00014946,2]
[392912901,1762131034556,-151.0,0.00014946,2]
[392912902,1762131034566,-151.0,0.00014946,2]
[392912903,1762131034577,-151.0,0.00014946,2]
[392912904,1762131034588,-151.0,0.00014946,2]
[392912905,1762131034598,-549.1,0.00014954,2]
[392912906,1762131034610,-500.0,0.00014973,2]
[392912907,1762131034621,-500.0,0.00014973,2]
[392912908,1762131034632,-503.91202727,0.00014973,2]
[392912909,1762131034642,-500.0,0.00014973,2]
[392912910,1762131034652,-500.0,0.00014973,2]
[392912911,1762131034663,-500.0,0.00014973,2]
[392912912,1762131034674,-500.0,0.00014973,2]
[392912913,1762131034685,-500.0,0.00014973,2]
[392912914,1762131034696,-500.0,0.00014973,2]
[392912915,1762131034706,-429.73326592,0.00014973,2]
[392912916,1762131034716,-500.0,0.00014973,2]
[392912917,1762131034728,-500.0,0.00014973,2]
[392912918,1762131034739,-3792.04,0.00014976,2]
[392912919,1762131034750,-168.12564,0.0001498,2]
[392912920,1762131034760,-2926.62539165,0.00014986,2]
[392912921,1762131034773,-31141.02187223,0.00014986,2]
[392912922,1762131034787,-51116.02017878,0.00014986,2]
[392912923,1762131034800,-3209.65001136,0.00014986,2]
[392912924,1762131034814,-2000.0,0.00014986,2]
[392912925,1762131034826,-1106.04646739,0.00014986,2]
[392912926,1762131034838,-2499.88011157,0.00014986,2]
[392912927,1762131034850,-658.25,0.00014986,2]
[392912928,1762131034867,-488.41,0.00014986,2]
[392912929,1762131034948,160.59,0.00013819,2]
[392912940,1762131037403,-289.888631,0.0001488,2]
[392912941,1762131037413,-815.26198531,0.00014892,2]
[392912942,1762131037425,-737.96489215,0.00014892,2]
[392912943,1762131037437,-757.87491382,0.00014892,2]
[392912944,1762131037447,-6827.7420895,0.00014986,2]
[392912945,1762131037458,-1287.45005375,0.00014986,2]
[392912946,1762131037470,-944.96660644,0.00014986,2]
[392912947,1762131037485,-1733.86308309,0.00014986,2]
[392912948,1762131037497,-3056.11171257,0.00014986,2]
[392912949,1762131037509,-9688.87379963,0.00014986,2]
[392912950,1762131037520,-3034.80083594,0.00014986,2]
[392912951,1762131037531,-342.16705211,0.00014986,2]
[392912952,1762131037543,-2365.07605108,0.00014986,2]
[392912953,1762131037556,-640.88286808,0.00014986,2]
[392912954,1762131037567,-416.57467405,0.00014986,2]
[392912955,1762131037579,-17842.08,0.00014986,2]
[392912956,1762131037621,-12881.06559608,0.00014986,2]
[392912957,1762131037634,-57551.0556548,0.00014986,2]
[392912958,1762131037646,-151.0,0.00014986,2]
[392912959,1762131037657,-188.361048,0.00014986,2]
[392912960,1762131037670,-151.0,0.00014986,2]
[392912961,1762131037681,-2744.2477554,0.00014986,2]
[392912962,1762131037692,-3374.36358304,0.00014989,2]
[392912963,1762131037704,-4448.62288212,0.0001499,2]
[392912964,1762131037714,-462.45950045,0.0001499,2]
[392912965,1762131037725,-536.55386986,0.0001499,2]
[392912967,1762131037735,-237.50545484,0.0001499,2]
[392912969,1762131037745,-200.0,0.00014991,2]
[392912971,1762131037755,-151.0,0.00014991,2]
[392912974,1762131037765,-150.0,0.00014991,2]
[392912976,1762131037775,-150.0,0.00014991,2]
[392912978,1762131037785,-150.0,0.00014991,2]
[392912980,1762131037794,-150.0,0.00014991,2]
[392912982,1762131037804,-150.0,0.00014991,2]
[392912984,1762131037814,-150.0,0.00014991,2]
[392912986,1762131037824,-150.0,0.00014991,2]
[392912988,1762131037835,-150.0,0.00014991,2]
[392912990,1762131037846,-150.0,0.00014991,2]
[392912992,1762131037856,-152.07242879,0.00014991,2]
[392912993,1762131037867,-150.0,0.00014991,2]
[392912994,1762131037878,-150.85652783,0.00014991,2]
[392912995,1762131037889,-150.0,0.00014991,2]
[392912996,1762131037898,-150.0,0.00014991,2]
[392912997,1762131037908,-252.03246734,0.00014991,2]
[392912998,1762131037918,-150.0,0.00014991,2]
[392912999,1762131037929,-150.0,0.00014991,2]
[392913000,1762131037940,-150.0,0.00014991,2]
[392913001,1762131037950,-152.13635504,0.00014991,2]
[392913002,1762131037962,-150.77597293,0.00014991,2]
[392913003,1762131037971,-150.0,0.00014991,2]
[392913004,1762131037982,-150.0,0.00014991,2]
[392913005,1762131037991,-150.0,0.00014991,2]
[392913006,1762131038002,-500.0,0.00014991,2]
[392913007,1762131038012,-250.70575794,0.00014991,2]
[392913008,1762131038022,-500.0,0.00014991,2]
[392913009,1762131038032,-500.0,0.00014991,2]
[392913010,1762131038043,-500.0,0.00014991,2]
[392913011,1762131038054,-150.0,0.00014991,2]
[392913012,1762131038064,-150.0,0.00014991,2]
[392913013,1762131038075,-500.0,0.00014991,2]
[392913014,1762131038085,-150.0,0.00014991,2]
[392913015,1762131038095,-500.0,0.00014991,2]
[392913016,1762131038106,-463.38731801,0.00014991,2]
[392913026,1762131042549,-1981.44901581,0.00014894,2]
[392913027,1762131042655,-329.65277547,0.00014894,2]
[392913028,1762131042667,-36.61268199,0.00014991,2]
[392913029,1762131042676,-144.93146454,0.00014991,2]
[392913030,1762131042710,-5.06853546,0.00014991,2]
[392913031,1762131042719,-500.0,0.00014991,2]
[392913032,1762131042728,-380.81986696,0.00014999,2]
[392913036,1762131045490,-533.9999989,0.00014895,2]
[392913037,1762131045503,-1777.10179238,0.00014895,2]
[392913038,1762131045514,-4506.92578007,0.00014999,2]
[392913039,1762131045589,-1312.09415781,0.00014999,2]
[392913040,1762131045601,-389.312,0.00014999,2]
[392913041,1762131045643,-9931.49720485,0.00014999,2]
[392913042,1762131045696,-999.81000002,0.00014999,2]
[392913054,1762131099268,339.86611292,0.00014374,2]
[392913256,1762131279401,3792.94,0.00014162,2]
[392913307,1762131319906,1000.0,0.00013699,2]
[392913329,1762131423829,-195.0,0.00014879,2]
[392913331,1762131468918,-168.12563713,0.0001485,2]
[392913332,1762131468940,-55.0,0.00014879,2]
[392913333,1762131468961,-110.31425258,0.00014879,2]
[392913340,1762131543913,-480.48046981,0.0001458,2]
[392913346,1762131607396,2788.89,0.0001406,2]
[392913349,1762131646363,2078.31388708,0.00014042,2]
[392913350,1762131646387,1703.79611292,0.00014042,2]
[392913359,1762131755002,333.43988971,0.00013,2]
[392913368,1762131843890,1638.1,0.00013,2]
[392913373,1762131884072,2132.81,6.972e-05,2]
[392913374,1762131884278,2132.81,7.339e-05,2]
[392913375,1762131884524,2059.05399737,7.706e-05,2]
[392913376,1762131884549,73.75600263,7.706e-05,2]
[392913377,1762131884713,2132.81,8.072e-05,2]
[392913378,1762131885153,2132.81,8.439e-05,2]
[392913379,1762131885360,2132.81,8.806e-05,2]
[392913380,1762131885588,2132.81,9.173e-05,2]
[392913381,1762131885786,1395.01399737,9.54e-05,2]
[392913382,1762131885809,737.79600263,9.54e-05,2]
[392913383,1762131885991,2132.81,9.907e-05,2]
[392913384,1762131886285,2132.81,0.00010274,2]
[392913385,1762131886517,2132.81,0.00010641,2]
[392913386,1762131886939,2132.81,0.00011008,2]
[392913387,1762131887191,730.97399737,0.00011375,2]
[392913388,1762131887216,1401.83600263,0.00011375,2]
[392913389,1762131887435,2132.81,0.00011742,2]
[392913390,1762131887636,2132.81,0.00012109,2]
[392913391,1762131887836,2132.81,0.00012476,2]
[392913392,1762131888067,2132.81,0.00012843,2]
[392913393,1762131888308,66.93399737,0.0001321,2]
[392913394,1762131888330,2065.87600263,0.0001321,2]
[392913395,1762131888529,2132.81,0.00013576,2]
[392913396,1762131888751,2132.81,0.00013943,2]
[392913400,1762131898459,467.46,0.00013943,2]
[392913401,1762131909255,1284.52,0.00014,2]
[392913402,1762131909944,-221.61206356,0.00014535,2]
[392913403,1762131909966,-28.38793628,0.00014544,2]
[392913404,1762131910709,150.0,0.00013488,2]
[392913405,1762131910787,150.0,0.00013488,2]
[392913406,1762131911168,1284.52,0.00014,2]
[392913407,1762131911278,150.0,0.00013488,2]
[392913408,1762131913153,1284.52,0.00014,2]
[392913409,1762131915328,1284.52,0.00014,2]